bitfinex-derivatives/quotes_BNBF0:USTF0_20250128
["timestamp","ask_amount","ask_price","bid_price","bid_amount"]
[1738091837654,0.29938775,668.03,667.13,1.12067528]
[1738091840454,0.29938775,668.03,667.2,1.12067528]
[1738091842359,0.29938775,668.03,667.14,1.12067528]
[1738091845661,0.29938775,668.03,667.09,1.12067528]
[1738091848658,0.29938775,668.03,666.82,0.29993101]
[1738091848659,0.29938775,668.03,667.02,1.12067528]
[1738091854564,0.29938775,668.03,666.82,0.29993101]
[1738091854565,0.29938775,668.03,667.08,1.12067528]
[1738091856966,1.56355889,668.31,667.08,1.12067528]
[1738091857169,1.56355889,668.31,666.82,0.29993101]
[1738091857170,1.56355889,668.31,667.22,1.12067528]
[1738091860069,1.10182398,668.41,667.22,1.12067528]
[1738091860268,1.56327209,668.37,667.33,1.12067528]
[1738091862471,1.56327209,668.37,667.22,1.12067528]
[1738091868172,1.56327209,668.37,667.26,1.12067528]
[1738091870569,0.27513206,668.36,667.26,1.12067528]
[1738091871377,0.27513614,668.35,667.26,1.12067528]
[1738091871675,0.27513614,668.34,667.25,1.12067528]
[1738091871876,0.27513614,668.36,667.25,1.12067528]
[1738091872077,0.27513614,668.35,667.25,1.12067528]
[1738091872279,0.27513614,668.36,667.25,1.12067528]
[1738091872471,0.27513614,668.35,667.25,1.12067528]
[1738091872669,1.56327209,668.37,667.25,1.12067528]
[1738091872874,0.27513012,668.36,667.25,1.12067528]
[1738091874575,0.27513012,668.36,666.83,0.71343416]
[1738091874576,0.27513012,668.36,667.19,1.12067528]
[1738091876576,1.56327209,668.37,667.19,1.12067528]
[1738091876883,0.27513588,668.36,667.19,1.12067528]
[1738091877481,1.56327209,668.37,667.19,1.12067528]
[1738091877783,1.56327209,668.37,667.2,1.12067528]
[1738091877784,0.27513685,668.36,667.2,1.12067528]
[1738091878082,1.56327209,668.37,667.2,1.12067528]
[1738091880585,1.56327209,668.37,666.83,0.71343416]
[1738091880586,1.56327209,668.37,667.19,1.12067528]
[1738091883790,1.56327209,668.37,667.22,1.12067528]
[1738091885488,0.27513598,668.36,667.22,1.12067528]
[1738091885684,1.56327209,668.37,667.22,1.12067528]
[1738091886188,1.56327209,668.37,667.27,1.12067528]
[1738091886589,0.27513471,668.36,667.27,1.12067528]
[1738091886788,1.56327209,668.37,667.27,1.12067528]
[1738091891996,1.56327209,668.37,667.34,1.12067528]
[1738091892401,0.29923993,668.36,667.34,1.12067528]
[1738091894999,0.29923993,668.36,667.21,1.12067528]
[1738091895606,0.27519798,668.35,667.21,1.12067528]
[1738091895806,0.29923993,668.36,667.21,1.12067528]
[1738091896008,0.27521977,668.35,667.21,1.12067528]
[1738091896608,0.29924888,668.34,667.21,1.12067528]
[1738091896807,0.27521977,668.33,667.21,1.12067528]
[1738091897002,0.29925784,668.32,667.21,1.12067528]
[1738091897201,0.27521977,668.31,667.21,1.12067528]
[1738091897804,1.56368184,668.3,667.21,1.12067528]
[1738091898008,0.57449104,668.29,667.21,1.12067528]
[1738091898209,0.57449552,668.28,667.21,1.12067528]
[1738091898410,0.5745,668.27,667.21,1.12067528]
[1738091898603,0.29928023,668.27,667.21,1.12067528]
[1738091899005,0.29928023,668.27,666.98,1.12067528]
[1738091902115,0.29928023,668.27,666.75,1.12067528]
[1738091905416,0.29928023,668.27,666.66,1.12067528]
[1738091905715,0.27527458,668.26,666.66,1.12067528]
[1738091905916,0.29929366,668.24,666.66,1.12067528]
[1738091906216,0.27527458,668.23,666.66,1.12067528]
[1738091906417,0.2993071,668.21,666.66,1.12067528]
[1738091908221,1.56414453,668.2,666.66,1.12067528]
[1738091908418,0.29931606,668.19,666.58,1.12067528]
[1738091910422,0.27522797,668.18,666.58,1.12067528]
[1738091910817,0.29931606,668.19,666.58,1.12067528]
[1738091911019,0.27520326,668.18,666.58,1.12067528]
[1738091911216,0.29931606,668.19,666.58,1.12067528]
[1738091911422,0.29931606,668.19,666.63,1.12067528]
[1738091914124,0.27520726,668.18,666.93,1.12067528]
[1738091914521,0.29931606,668.19,666.93,1.12067528]
[1738091918923,0.29931606,668.19,666.94,0.29987705]
[1738091919125,0.29931606,668.19,667.03,1.12067528]
[1738091922828,0.29931606,668.19,667.04,1.12067528]
[1738091925425,0.29931606,668.19,667.05,1.12067528]
[1738091928032,0.29931606,668.19,667.15,1.12067528]
[1738091931034,0.29931606,668.19,667.18,1.12067528]
[1738091933736,0.29931606,668.19,667.09,1.12067528]
[1738091936343,0.29931606,668.19,667.07,1.12067528]
[1738091940139,0.29931606,668.19,666.94,0.29987705]
[1738091943547,0.29931606,668.19,666.98,1.12067528]
[1738091943749,0.29931606,668.19,666.99,0.29985457]
[1738091946547,0.29931606,668.19,667.06,1.12067528]
[1738091950157,0.29931606,668.19,666.99,0.29985457]
[1738091950158,0.29931606,668.19,667.16,1.12067528]
[1738091953260,0.29931606,668.19,667.32,1.12067528]
[1738091956258,0.29931606,668.19,667.11,1.12067528]
[1738091957464,0.29931606,668.19,667.11,1.42047591]
[1738091960161,0.29931606,668.19,667.35,1.12067528]
[1738091963266,0.29931606,668.19,667.39,1.12067528]
[1738091964461,1.56335988,668.39,667.39,1.12067528]
[1738091966267,1.56335988,668.39,667.11,0.29980063]
[1738091966268,1.56335988,668.39,667.35,1.12067528]
[1738091969970,1.56335988,668.39,667.26,1.12067528]
[1738091974571,1.56335988,668.39,667.21,1.12067528]
[1738091980080,1.56335988,668.39,667.35,1.12067528]
[1738091983083,1.56335988,668.39,667.39,1.12067528]
[1738091983684,0.29923097,668.38,667.39,1.12067528]
[1738091985985,0.29923097,668.38,667.11,0.29980063]
[1738091989678,0.27518984,668.37,667.11,0.29980063]
[1738091989885,0.29923993,668.36,667.11,0.29980063]
[1738091990080,0.27518984,668.35,667.11,0.29980063]
[1738091990280,0.29924888,668.34,667.11,0.29980063]
[1738091990681,0.27518769,668.33,667.11,0.29980063]
[1738091990884,0.29925784,668.32,667.11,0.29980063]
[1738091991080,0.27518769,668.31,667.11,0.29980063]
[1738091991281,1.83884611,668.31,667.11,0.29980063]
[1738091991580,1.56365842,668.31,667.11,0.29980063]
[1738091991787,0.29926679,668.3,667.11,0.29980063]
[1738091997388,0.27517476,668.29,667.11,0.29980063]
[1738092000390,0.29926679,668.3,667.11,0.29980063]
[1738092004791,0.29926679,668.3,667.24,1.12067528]
[1738092007796,0.29926679,668.3,667.27,1.12067528]
[1738092010597,0.29926679,668.3,667.3,1.12067528]
[1738092014597,0.29926679,668.3,667.31,1.12067528]
[1738092017605,0.29926679,668.3,667.26,1.12067528]
[1738092020507,0.29926679,668.3,667.25,1.12067528]
[1738092026107,0.29926679,668.3,667.11,0.29980063]
[1738092026108,0.29926679,668.3,667.29,1.12067528]
[1738092030012,0.29926679,668.3,667.36,1.12067528]
[1738092032912,0.29926679,668.3,667.34,1.12067528]
[1738092035314,0.29926679,668.3,667.41,1.12067528]
[1738092039125,0.29926679,668.3,667.44,1.12067528]
[1738092042127,0.29926679,668.3,667.11,0.29980063]
[1738092047027,0.27518941,668.29,667.11,0.29980063]
[1738092048027,0.57446296,668.28,667.11,0.29980063]
[1738092048228,0.27518721,668.27,667.11,0.29980063]
[1738092048625,1.5636877,668.26,667.11,0.29980063]
[1738092048826,0.27518721,668.25,667.11,0.29980063]
[1738092050030,0.29929366,668.24,667.11,0.29980063]
[1738092050329,0.27518721,668.23,667.11,0.29980063]
[1738092050727,0.27518635,668.22,667.11,0.29980063]
[1738092050925,0.27518635,668.23,667.11,0.29980063]
[1738092051129,0.29929366,668.24,667.11,0.29980063]
[1738092051626,0.27518788,668.23,667.11,0.29980063]
[1738092051826,0.29929366,668.24,667.11,0.29980063]
[1738092052231,0.27518687,668.23,667.11,0.29980063]
[1738092052630,0.29929366,668.24,667.11,0.29980063]
[1738092052830,0.27518785,668.23,667.11,0.29980063]
[1738092053132,0.29929366,668.24,667.11,0.29980063]
[1738092053527,0.27518686,668.23,667.11,0.29980063]
[1738092053832,0.29929366,668.24,667.11,0.29980063]
[1738092061841,0.27524074,668.23,667.11,0.29980063]
[1738092062232,0.27524074,668.23,666.79,1.12067528]
[1738092062737,0.57457303,668.22,666.79,1.12067528]
[1738092062934,0.27527041,668.21,666.79,1.12067528]
[1738092063840,0.29931158,668.2,666.79,1.12067528]
[1738092064140,0.27527041,668.19,666.79,1.12067528]
[1738092064541,1.83936808,668.19,666.79,1.12067528]
[1738092064838,0.57459095,668.18,666.72,1.12067528]
[1738092065135,0.57459543,668.17,666.72,1.12067528]
[1738092065339,0.57459991,668.16,666.72,1.12067528]
[1738092065534,0.27527041,668.15,666.72,1.12067528]
[1738092066744,0.29933846,668.14,666.72,1.12067528]
[1738092067145,0.27527413,668.13,666.72,1.12067528]
[1738092067340,0.29933846,668.14,666.72,1.12067528]
[1738092067542,0.27527427,668.13,666.72,1.12067528]
[1738092067746,0.29934742,668.12,666.72,1.12067528]
[1738092067942,0.27529344,668.11,666.69,1.12067528]
[1738092068140,0.29935638,668.1,666.69,1.12067528]
[1738092068343,0.27529344,668.09,666.69,1.12067528]
[1738092068542,0.29936534,668.08,666.69,1.12067528]
[1738092071649,0.29936534,668.08,666.62,1.12067528]
[1738092071950,0.27528096,668.07,666.62,1.12067528]
[1738092072348,0.2993743,668.06,666.63,0.3000165]
[1738092072545,0.27528096,668.05,666.63,0.3000165]
[1738092072748,0.2993743,668.06,666.63,0.3000165]
[1738092073347,0.27525112,668.05,666.63,0.3000165]
[1738092073946,0.2993743,668.06,666.63,0.3000165]
[1738092074549,0.2993743,668.06,666.89,1.12067528]
[1738092076848,0.2993743,668.06,666.9,0.29989503]
[1738092077553,0.2993743,668.06,666.98,1.12067528]
[1738092080560,0.2993743,668.06,666.9,0.29989503]
[1738092080561,0.2993743,668.06,667.03,1.12067528]
[1738092084059,1.56362915,668.3,667.03,1.12067528]
[1738092084552,1.10182398,668.73,667.03,1.12067528]
[1738092084757,1.56335988,668.42,667.03,1.12067528]
[1738092085060,1.10182398,668.73,667.03,1.12067528]
[1738092085361,8.81498804,675.07,667.18,1.12067528]
[1738092085362,1.56326039,668.42,667.18,1.12067528]
[1738092085654,1.10182398,668.64,667.18,1.12067528]
[1738092085857,0.57422312,668.63,667.18,1.12067528]
[1738092086057,0.57422759,668.62,667.18,1.12067528]
[1738092086358,0.57423207,668.61,667.18,1.12067528]
[1738092086559,0.27510403,668.6,667.18,1.12067528]
[1738092086858,0.57423654,668.6,667.18,1.12067528]
[1738092087058,0.27510403,668.59,667.18,1.12067528]
[1738092087260,0.29914146,668.58,667.18,1.12067528]
[1738092087461,0.27510403,668.57,667.18,1.12067528]
[1738092087762,0.29915041,668.56,667.18,1.12067528]
[1738092087962,0.27510403,668.55,667.18,1.12067528]
[1738092088157,0.29915936,668.54,667.18,1.12067528]
[1738092088360,0.27510403,668.53,667.18,1.12067528]
[1738092088661,0.29916831,668.52,667.13,1.12067528]
[1738092088958,0.27510403,668.51,667.13,1.12067528]
[1738092089162,0.29917726,668.5,667.13,1.12067528]
[1738092089362,0.27510403,668.49,667.13,1.12067528]
[1738092089563,0.29918621,668.48,667.13,1.12067528]
[1738092090857,0.29918621,668.48,667.05,1.12067528]
[1738092091464,0.29918621,668.48,667.06,0.2998231]
[1738092096064,1.56307315,668.47,667.06,0.2998231]
[1738092102672,0.29918621,668.48,667.06,0.2998231]
[1738092104674,0.29918621,668.48,667.28,1.12067528]
[1738092104872,0.29918621,668.48,667.29,0.29971976]
[1738092107275,0.29918621,668.48,667.32,1.12067528]
[1738092110572,0.29918621,668.48,667.36,1.12067528]
[1738092113371,1.56292105,668.47,667.36,1.12067528]
[1738092113977,1.56292105,668.47,667.43,1.12067528]
[1738092116879,1.56292105,668.47,667.48,1.12067528]
[1738092119885,1.56292105,668.47,667.29,0.29971976]
[1738092120285,0.29919516,668.46,667.29,0.29971976]
[1738092123486,0.27513934,668.45,667.29,0.29971976]
[1738092123688,0.29920411,668.44,667.29,0.29971976]
[1738092123884,0.27514323,668.43,667.29,0.29971976]
[1738092125091,0.29921306,668.42,667.29,0.29971976]
[1738092125290,0.27514323,668.41,667.29,0.29971976]
[1738092125786,0.29922202,668.4,667.29,0.29971976]
[1738092126092,0.27514323,668.39,667.29,0.29971976]
[1738092126492,0.29923097,668.38,667.29,0.29971976]
[1738092126685,0.27514323,668.37,667.29,0.29971976]
[1738092126885,0.29923993,668.36,667.29,0.29971976]
[1738092127192,0.27514323,668.35,667.29,0.29971976]
[1738092127694,0.29924888,668.34,667.29,0.29971976]
[1738092128293,0.27514933,668.33,667.29,0.29971976]
[1738092128988,0.29924888,668.34,667.29,0.29971976]
[1738092134797,0.29924888,668.34,667.32,1.12067528]
[1738092137997,0.29924888,668.34,667.29,0.29971976]
[1738092137998,0.29924888,668.34,667.29,1.42039504]
[1738092141500,0.29924888,668.34,667.32,1.12067528]
[1738092144204,0.29924888,668.34,667.4,1.12067528]
[1738092146805,0.29924888,668.34,667.36,1.12067528]
[1738092149208,0.29924888,668.34,667.4,1.12067528]
[1738092153312,0.29924888,668.34,667.29,0.29971976]
[1738092161314,0.29924888,668.34,667.1,1.12067528]
[1738092162217,0.29924888,668.34,666.87,1.12067528]
[1738092162416,0.29924888,668.34,666.88,0.29990403]
[1738092163218,1.56365842,668.33,666.88,0.29990403]
[1738092163421,0.29925784,668.32,666.88,0.29990403]
[1738092168229,0.27516576,668.31,666.88,0.29990403]
[1738092168424,0.29926679,668.3,666.88,0.29990403]
[1738092171935,0.29926679,668.3,667.06,1.12067528]
[1738092175135,0.27514864,668.29,667.06,1.12067528]
[1738092175335,0.29926679,668.3,667.06,1.12067528]
[1738092176637,0.27514772,668.29,667.06,1.12067528]
[1738092178241,0.27514772,668.29,667.09,1.12067528]
[1738092180137,0.27514772,668.29,667.09,1.4204849]
[1738092180443,0.29926679,668.3,667.09,1.4204849]
[1738092181141,0.29926679,668.3,667.1,0.29980512]
[1738092181743,0.29926679,668.3,667.21,1.12067528]
[1738092185743,0.29926679,668.3,667.3,1.12067528]
[1738092188848,0.29926679,668.3,667.39,1.12067528]
[1738092194346,0.29926679,668.3,667.36,1.12067528]
[1738092195444,1.56297369,668.54,667.36,1.12067528]
[1738092197452,1.10182398,668.94,667.36,1.12067528]
[1738092197751,1.56278652,668.63,667.36,1.12067528]
[1738092198049,0.29898941,668.92,667.36,1.12067528]
[1738092198249,0.27499066,668.91,667.36,1.12067528]
[1738092198449,0.29900282,668.89,667.36,1.12067528]
[1738092198650,0.27499066,668.88,667.36,1.12067528]
[1738092198853,0.29901176,668.87,667.36,1.12067528]
[1738092199051,0.27499066,668.86,667.36,1.12067528]
[1738092199251,0.2990207,668.85,667.36,1.12067528]
[1738092199446,0.27499066,668.84,667.36,1.12067528]
[1738092199653,0.29902964,668.83,667.36,1.12067528]
[1738092199852,0.27499066,668.82,667.36,1.12067528]
[1738092200046,0.29902964,668.83,667.36,1.12067528]
[1738092200549,0.29902964,668.83,667.34,1.12067528]
[1738092200749,0.29902964,668.83,667.34,1.42037258]
[1738092201853,0.29902964,668.83,667.35,0.29969281]
[1738092208460,1.56263448,668.82,667.35,0.29969281]
[1738092208960,0.29903859,668.81,667.35,0.29969281]
[1738092213055,0.27492748,668.8,667.35,0.29969281]
[1738092213461,0.29903859,668.81,667.35,0.29969281]
[1738092214663,0.29903859,668.81,667.62,1.12067528]
[1738092215063,0.27492713,668.8,667.62,1.12067528]
[1738092216263,0.27492645,668.79,667.62,1.12067528]
[1738092216463,0.29903859,668.81,667.62,1.12067528]
[1738092216656,0.27493211,668.8,667.62,1.12067528]
[1738092217565,0.29903859,668.81,667.62,1.12067528]
[1738092217765,0.27493047,668.8,667.62,1.12067528]
[1738092217966,0.2749288,668.79,667.64,1.12067528]
[1738092218266,0.2749288,668.78,667.64,1.12067528]
[1738092218464,0.2749288,668.8,667.64,1.12067528]
[1738092218665,0.2749288,668.79,667.64,1.12067528]
[1738092218865,0.2749288,668.78,667.64,1.12067528]
[1738092219065,0.2749288,668.8,667.64,1.12067528]
[1738092219266,0.2749288,668.79,667.64,1.12067528]
[1738092219466,0.27496181,668.8,667.64,1.12067528]
[1738092219668,0.29903859,668.81,667.64,1.12067528]
[1738092219869,0.27496115,668.8,667.64,1.12067528]
[1738092220167,0.29904753,668.79,667.64,1.12067528]
[1738092220565,0.27497024,668.78,667.64,1.12067528]
[1738092220964,0.29905647,668.77,667.64,1.12067528]
[1738092223469,0.29905647,668.77,667.57,1.12067528]
[1738092226774,0.29905647,668.77,667.56,1.12067528]
[1738092229277,0.27498332,668.76,667.62,1.12067528]
[1738092229975,1.56244154,668.75,667.62,1.12067528]
[1738092231977,0.2749811,668.74,667.69,1.12067528]
[1738092233478,1.56244154,668.75,667.69,1.12067528]
[1738092233777,0.27498105,668.74,667.69,1.12067528]
[1738092234874,0.27498105,668.74,667.73,1.12067528]
[1738092236974,0.27498105,668.73,667.73,1.12067528]
[1738092237179,0.27498105,668.72,667.73,1.12067528]
[1738092237377,0.27498105,668.74,667.75,1.12067528]
[1738092237575,1.56244154,668.75,667.75,1.12067528]
[1738092237777,0.27497363,668.74,667.75,1.12067528]
[1738092239184,0.29907436,668.73,667.75,1.12067528]
[1738092239377,0.27497363,668.72,667.75,1.12067528]
[1738092240284,0.27497363,668.72,667.54,1.12067528]
[1738092240285,0.27497363,668.72,667.71,1.12067528]
[1738092241486,0.29907436,668.73,667.71,1.12067528]
[1738092241687,0.27498633,668.72,667.71,1.12067528]
[1738092243184,0.2990833,668.71,667.71,1.12067528]
[1738092244390,0.2990833,668.71,667.49,1.12067528]
[1738092244391,0.2990833,668.71,667.7,1.12067528]
[1738092246694,0.2990833,668.71,667.71,1.12067528]
[1738092249290,0.2990833,668.71,667.61,1.12067528]
[1738092252493,0.2990833,668.71,667.35,0.29969281]
[1738092252494,0.2990833,668.71,667.65,1.12067528]
[1738092255092,0.2990833,668.71,667.71,1.12067528]
[1738092258702,0.2990833,668.71,667.78,1.12067528]
[1738092261797,0.2990833,668.71,667.73,1.12067528]
[1738092265000,0.2749696,668.7,667.73,1.12067528]
[1738092265205,0.2990833,668.71,667.73,1.12067528]
[1738092265408,0.2990833,668.71,667.77,1.12067528]
[1738092265607,0.27497195,668.7,667.77,1.12067528]
[1738092265807,0.2990833,668.71,667.77,1.12067528]
[1738092267509,0.2990833,668.71,667.79,1.12067528]
[1738092270214,0.2990833,668.71,667.8,1.12067528]
[1738092273415,0.2990833,668.71,667.89,1.12067528]
[1738092275815,0.2990833,668.71,667.9,1.12067528]
[1738092279017,0.2990833,668.71,667.88,1.12067528]
[1738092282715,0.2990833,668.71,667.47,1.34481034]
[1738092282716,0.2990833,668.71,667.85,1.12067528]
[1738092288826,0.2990833,668.71,667.8,1.12067528]
[1738092291730,0.2990833,668.71,667.83,1.12067528]
[1738092294729,0.2990833,668.71,667.78,1.12067528]
[1738092297732,0.2990833,668.71,667.36,0.71416308]
[1738092297733,0.2990833,668.71,667.73,1.12067528]
[1738092300528,0.2990833,668.71,667.8,1.12067528]
[1738092303936,0.2990833,668.71,667.71,1.12067528]
[1738092310250,0.2990833,668.71,667.69,1.12067528]
[1738092313651,0.2990833,668.71,667.58,1.12067528]
[1738092316652,0.2990833,668.71,667.52,1.12067528]
[1738092319749,0.2990833,668.71,667.48,1.12067528]
[1738092319953,1.86148977,668.71,667.48,1.12067528]
[1738092323153,1.86148977,668.71,667.47,1.12067528]
[1738092326960,1.86148977,668.71,667.35,0.29969281]
[1738092326961,1.86148977,668.71,667.65,1.12067528]
[1738092327160,0.2749782,668.7,667.65,1.12067528]
[1738092327561,1.86148977,668.71,667.65,1.12067528]
[1738092327860,0.27497912,668.7,667.65,1.12067528]
[1738092328958,1.86148977,668.71,667.65,1.12067528]
[1738092329766,1.86148977,668.71,667.62,1.12067528]
[1738092333363,1.86148977,668.71,667.37,1.12067528]
[1738092335962,0.27501298,668.7,667.37,1.12067528]
[1738092336168,0.29909225,668.69,667.37,1.12067528]
[1738092336369,0.27501298,668.68,667.35,0.29969281]
[1738092336570,0.2991012,668.67,667.35,0.29969281]
[1738092336867,0.27501298,668.66,667.35,0.29969281]
[1738092337069,0.29910567,668.66,667.35,0.29969281]
[1738092337263,0.27501054,668.65,667.35,0.29969281]
[1738092337970,1.56280407,668.64,667.35,0.29969281]
[1738092338173,0.27501054,668.63,667.35,0.29969281]
[1738092338872,1.56280407,668.64,667.47,1.12067528]
[1738092339171,0.27501089,668.63,667.47,1.12067528]
[1738092339471,1.56280407,668.64,667.47,1.12067528]
[1738092340975,0.27500601,668.63,667.47,1.12067528]
[1738092341671,0.27500601,668.63,667.52,1.12067528]
[1738092342167,1.56280407,668.64,667.52,1.12067528]
[1738092342372,0.27500074,668.63,667.52,1.12067528]
[1738092344074,1.56280407,668.64,667.52,1.12067528]
[1738092344780,1.56280407,668.64,667.63,1.12067528]
[1738092347682,1.56280407,668.64,667.69,1.12067528]
[1738092353177,0.29910567,668.66,667.69,1.12067528]
[1738092353884,0.29910567,668.66,667.65,1.12067528]
[1738092356988,0.29910567,668.66,667.72,1.12067528]
[1738092359685,0.29910567,668.66,667.73,1.12067528]
[1738092363594,0.29910567,668.66,667.83,1.12067528]
[1738092366597,0.29910567,668.66,667.8,1.12067528]
[1738092369707,0.29910567,668.66,667.79,1.12067528]
[1738092372501,0.29910567,668.66,667.84,1.12067528]
[1738092375902,0.29910567,668.66,667.86,1.12067528]
[1738092376805,0.2834688,668.66,667.86,1.12067528]
[1738092378205,1.56217268,668.89,667.86,1.12067528]
[1738092378407,1.56217268,668.89,667.87,1.12067528]
[1738092379106,1.10182398,669.1,667.87,1.12067528]
[1738092379407,1.56185133,668.97,667.87,1.12067528]
[1738092379602,0.29891344,669.09,667.87,1.12067528]
[1738092379801,1.5618046,668.97,667.87,1.12067528]
[1738092380204,0.29891344,669.09,667.87,1.12067528]
[1738092380405,0.27485537,669.08,667.87,1.12067528]
[1738092381407,1.56173451,669.07,667.87,1.12067528]
[1738092381602,0.27485537,669.06,667.87,1.12067528]
[1738092382008,0.27485537,669.06,667.92,1.12067528]
[1738092382409,1.56173451,669.07,667.92,1.12067528]
[1738092389709,0.29891344,669.09,667.92,1.12067528]
[1738092392214,0.29891344,669.09,668.07,1.12067528]
[1738092395212,0.29891344,669.09,668.12,1.12067528]
[1738092398519,0.29891344,669.09,668.06,1.12067528]
[1738092401520,1.56113317,669.33,668.07,0.29936982]
[1738092401722,0.27471536,669.32,668.07,0.29936982]
[1738092409126,1.56113317,669.33,668.07,0.29936982]
[1738092415133,1.56113317,669.33,668.07,1.4200451]
[1738092419038,0.27474048,669.32,668.1,1.12067528]
[1738092419532,1.56113317,669.33,668.1,1.12067528]
[1738092420934,0.27473783,669.32,668.1,1.12067528]
[1738092421237,0.29881519,669.31,668.1,1.12067528]
[1738092421437,0.27473783,669.3,668.1,1.12067528]
[1738092421639,0.29882412,669.29,668.1,1.12067528]
[1738092421936,0.27473783,669.28,668.1,1.12067528]
[1738092422137,0.27473783,669.28,668.22,1.12067528]
[1738092424839,0.27473783,669.28,668.07,0.29936982]
[1738092424840,0.27473783,669.28,668.16,1.12067528]
[1738092427639,0.27473783,669.28,668.22,1.12067528]
[1738092428539,0.29882412,669.29,668.22,1.12067528]
[1738092431335,0.29882412,669.29,668.31,1.12067528]
[1738092435246,0.29882412,669.29,668.1,1.12067528]
[1738092435247,0.29882412,669.29,668.38,1.12067528]
[1738092437943,0.29882412,669.29,668.35,1.12067528]
[1738092440845,0.29882412,669.29,668.38,1.12067528]
[1738092444145,0.29882412,669.29,668.4,1.12067528]
[1738092447354,0.29882412,669.29,668.39,1.12067528]
[1738092451156,0.29882412,669.29,668.36,1.12067528]
[1738092454159,0.29882412,669.29,668.07,0.29936982]
[1738092454160,0.29882412,669.29,668.31,1.12067528]
[1738092457258,0.29882412,669.29,668.22,1.12067528]
[1738092460863,0.29882412,669.29,668.26,1.12067528]
[1738092465370,0.29882412,669.29,668.33,1.12067528]
[1738092471575,0.29882412,669.29,668.29,1.12067528]
[1738092474381,0.29882412,669.29,668.31,1.12067528]
[1738092476974,0.29882412,669.29,668.35,1.12067528]
[1738092480579,0.29882412,669.29,668.4,1.12067528]
[1738092483883,0.29882412,669.29,668.39,1.12067528]
[1738092486980,0.29882412,669.29,668.35,1.12067528]
[1738092489394,0.29882412,669.29,668.38,1.12067528]
[1738092491692,0.29882412,669.29,668.39,1.12067528]
[1738092494586,0.29882412,669.29,668.08,0.71302397]
[1738092494587,0.29882412,669.29,668.5,1.12067528]
[1738092497993,0.29882412,669.29,668.53,1.12067528]
[1738092501892,0.29882412,669.29,668.56,1.12067528]
[1738092502594,1.56052645,669.55,668.56,1.12067528]
[1738092504993,1.56052645,669.55,668.07,0.29936982]
[1738092504994,1.56052645,669.55,668.61,1.12067528]
[1738092507702,1.56052645,669.55,668.54,1.12067528]
[1738092509802,1.56052645,669.55,668.48,1.12067528]
[1738092512796,1.56052645,669.55,668.08,0.71302397]
[1738092512797,1.56052645,669.55,668.45,1.12067528]
[1738092516698,1.56052645,669.55,668.43,1.12067528]
[1738092519603,1.56052645,669.55,668.44,1.12067528]
[1738092522305,1.56052645,669.55,668.47,1.12067528]
[1738092523802,0.27463258,669.54,668.47,1.12067528]
[1738092526109,0.27463258,669.54,668.58,1.12067528]
[1738092527509,0.27463361,669.53,668.58,1.12067528]
[1738092527708,0.27463361,669.54,668.58,1.12067528]
[1738092527912,0.27463361,669.53,668.58,1.12067528]
[1738092528109,0.27463361,669.52,668.58,1.12067528]
[1738092528306,0.27463361,669.51,668.58,1.12067528]
[1738092528503,0.27463361,669.5,668.58,1.12067528]
[1738092528707,0.27463361,669.54,668.58,1.12067528]
[1738092529005,0.27463361,669.53,668.58,1.12067528]
[1738092529210,0.27463361,669.54,668.58,1.12067528]
[1738092529408,0.27463361,669.53,668.58,1.12067528]
[1738092529608,0.27463361,669.54,668.58,1.12067528]
[1738092529811,0.27463361,669.53,668.58,1.12067528]
[1738092530008,0.27463361,669.53,668.08,0.71302397]
[1738092530009,1.56052645,669.55,668.62,1.12067528]
[1738092530810,0.2746372,669.52,668.62,1.12067528]
[1738092531016,1.56052645,669.55,668.62,1.12067528]
[1738092532712,1.56052645,669.55,668.6,1.12067528]
[1738092533413,0.274631,669.54,668.6,1.12067528]
[1738092537021,0.27463045,669.53,668.65,1.12067528]
[1738092537220,0.27463045,669.54,668.65,1.12067528]
[1738092537420,1.56052645,669.55,668.65,1.12067528]
[1738092537620,0.2746289,669.54,668.65,1.12067528]
[1738092539819,0.2746289,669.54,668.66,1.12067528]
[1738092542627,1.10182398,669.52,668.74,1.12067528]
[1738092542826,0.2746289,669.51,668.74,1.12067528]
[1738092544819,1.10182398,669.52,668.74,1.12067528]
[1738092548228,1.56052645,669.55,668.67,1.12067528]
[1738092549530,1.10182398,669.64,668.67,1.12067528]
[1738092549927,1.5602291,669.63,668.67,1.12067528]
[1738092551125,1.5602291,669.63,668.68,1.12067528]
[1738092554433,1.5602291,669.63,668.08,0.71302397]
[1738092554434,1.5602291,669.63,668.58,1.12067528]
[1738092556937,1.5602291,669.63,668.56,1.12067528]
[1738092560538,1.5602291,669.63,668.44,1.12067528]
[1738092563642,1.5602291,669.63,667.57,2.11915283]
[1738092563643,1.5602291,669.63,668.46,1.12067528]
[1738092566742,1.5602291,669.63,667.65,2.11915283]
[1738092566743,1.5602291,669.63,668.47,1.12067528]
[1738092569444,1.5602291,669.63,668.65,1.12067528]
[1738092572654,1.5602291,669.63,668.1,3.46396317]
[1738092572655,1.5602291,669.63,668.66,1.12067528]
[1738092575651,1.5602291,669.63,668.71,1.12067528]
[1738092579058,1.5602291,669.63,668.7,1.12067528]
[1738092582261,1.5602291,669.63,668.71,1.12067528]
[1738092584763,1.5602291,669.63,668.74,1.12067528]
[1738092587366,1.5602291,669.63,668.77,1.12067528]
[1738092591567,0.27457189,669.62,668.77,1.12067528]